lending/lending_fUSD_20241211
["ID","MTS","AMOUNT","RATE_DAILY","PERIOD"]
[345002705,1733919043656,-500.0,0.00011098,2]
[345002707,1733919043665,-619.19,0.00011098,2]
[345002709,1733919043675,-500.0,0.00011098,2]
[345002710,1733919043684,-500.0,0.00011098,2]
[345002711,1733919043694,-200.0,0.00011098,2]
[345002712,1733919043703,-500.0,0.00011098,2]
[345002713,1733919043713,-500.0,0.00011098,2]
[345002714,1733919043723,-159.33,0.00011098,2]
[345002715,1733919043732,-500.0,0.00011098,2]
[345002716,1733919043741,-561.59831269,0.00011098,2]
[345002717,1733919043751,-500.0,0.00011098,2]
[345002718,1733919043760,-500.0,0.00011098,2]
[345002719,1733919043770,-500.0,0.00011098,2]
[345002720,1733919043779,-554.99,0.00011098,2]
[345002721,1733919043788,-546.14,0.00011098,2]
[345002722,1733919043798,-500.0,0.00011098,2]
[345002723,1733919043807,-1008.81,0.00011098,2]
[345002724,1733919043822,-1076.03,0.00011098,2]
[345002725,1733919043833,-1000.0,0.00011099,2]
[345002726,1733919043842,-500.0,0.00011099,2]
[345002727,1733919043852,-500.0,0.00011099,2]
[345002728,1733919043861,-500.0,0.00011099,2]
[345002729,1733919043870,-500.0,0.00011099,2]
[345002730,1733919043879,-500.0,0.00011099,2]
[345002731,1733919043889,-155.56,0.00011099,2]
[345002732,1733919043898,-631.77,0.00011099,2]
[345002733,1733919043908,-500.0,0.00011099,2]
[345002734,1733919043918,-90.2917311,0.00011099,2]
[345002738,1733919045833,-216.45,0.00010999,2]
[345002739,1733919045843,-409.7082689,0.00011099,2]
[345002740,1733919045852,-70.81512689,0.00011099,2]
[345002741,1733919045863,-304.5249975,0.00011099,2]
[345002742,1733919045875,-124.65987561,0.00011099,2]
[345002743,1733919045885,-500.0,0.00011099,2]
[345002744,1733919045894,-500.0,0.00011099,2]
[345002745,1733919045903,-500.0,0.00011099,2]
[345002746,1733919045913,-212.36323888,0.00011099,2]
[345002747,1733919045922,-434.0414691,0.00011099,2]
[345002748,1733919045995,-65.9585309,0.00011099,2]
[345002749,1733919046004,-500.0,0.00011099,2]
[345002750,1733919046014,-500.0,0.00011099,2]
[345002751,1733919046024,-500.0,0.00011099,2]
[345002752,1733919046033,-500.0,0.00011099,2]
[345002753,1733919046043,-500.0,0.00011099,2]
[345002754,1733919046053,-500.0,0.00011099,2]
[345002755,1733919046065,-500.0,0.00011099,2]
[345002756,1733919046076,-500.0,0.00011099,2]
[345002757,1733919046086,-500.0,0.00011099,2]
[345002758,1733919046095,-629.58707738,0.00011099,2]
[345002759,1733919046105,-500.0,0.00011099,2]
[345002760,1733919046115,-500.0,0.00011099,2]
[345002761,1733919046124,-500.0,0.00011099,2]
[345002762,1733919046134,-500.0,0.00011099,2]
[345002770,1733919046358,-500.0,0.00011099,2]
[345002771,1733919046369,-500.0,0.00011099,2]
[345002772,1733919046379,-500.0,0.00011099,2]
[345002773,1733919046388,-500.0,0.00011099,2]
[345002774,1733919046398,-500.0,0.00011099,2]
[345002775,1733919046407,-500.0,0.00011099,2]
[345002776,1733919046416,-500.0,0.00011099,2]
[345002777,1733919046425,-500.0,0.00011099,2]
[345002778,1733919046434,-500.0,0.00011099,2]
[345002779,1733919046444,-216.77,0.00011099,2]
[345002780,1733919046453,-872.31,0.00011099,2]
[345002781,1733919046463,-500.0,0.00011099,2]
[345002782,1733919046472,-500.0,0.00011099,2]
[345002783,1733919046481,-500.0,0.00011099,2]
[345002784,1733919046491,-500.0,0.00011099,2]
[345002785,1733919046500,-500.0,0.00011099,2]
[345002786,1733919046509,-500.0,0.00011099,2]
[345002787,1733919046518,-424.39,0.00011099,2]
[345002788,1733919046527,-387.39051172,0.00011099,2]
[345002855,1733919706608,761.04,8.412e-05,2]
[345002858,1733919942289,1351.45433339,7e-05,2]
[345002867,1733919956502,4011.48387186,6.94e-05,2]
[345002868,1733920013431,-425.37,0.0001099,7]
[345002883,1733920111828,373.50828852,7.888e-05,2]
[345002908,1733920232123,-735.99028983,9.78e-05,2]
[345002909,1733920232178,-27233.79971017,9.78e-05,2]
[345002910,1733920232188,-150.0,9.879e-05,2]
[345002911,1733920232198,-19517.18820423,9.88e-05,2]
[345002912,1733920232209,-644.06672043,9.88e-05,2]
[345002913,1733920232220,-468.20274681,9.88e-05,2]
[345002914,1733920232232,-12100.0,9.88e-05,2]
[345002915,1733920232244,-9845.773943,9.88e-05,2]
[345002916,1733920232257,-2727.3619961,9.88e-05,2]
[345002917,1733920232268,-10559.43466366,9.88e-05,2]
[345002918,1733920232294,-1606.17926118,9.88e-05,2]
[345002919,1733920232305,-298.59,9.88e-05,2]
[345002920,1733920232316,-307.8334,9.88e-05,2]
[345002921,1733920232327,-496.86092717,9.88e-05,2]
[345002922,1733920232353,-3931.3,9.88e-05,2]
[345002923,1733920232413,-1071.52999766,9.88e-05,2]
[345002924,1733920232424,-5330.3889897,9.88e-05,2]
[345002925,1733920232435,-1128.8,9.88e-05,2]
[345002926,1733920232471,-1196.5,9.88e-05,2]
[345003003,1733920238113,-250.0,9.866e-05,2]
[345003004,1733920238123,-2616.82529227,9.88e-05,2]
[345003005,1733920238174,-344.2447363,9.88e-05,2]
[345003006,1733920238231,-1268.12500435,9.88e-05,2]
[345003007,1733920238346,-9898.20242,9.88e-05,2]
[345003157,1733920240117,-154032.46105548,9.88e-05,2]
[345003170,1733920240175,-54603.1074101,9.88e-05,2]
[345003202,1733920240343,-3000.09957414,9.88e-05,2]
[345003205,1733920240355,-1141.34284611,9.88e-05,2]
[345003209,1733920240366,-1862.54424,9.88e-05,2]
[345003228,1733920240456,-7535.80088869,9.88e-05,2]
[345003288,1733920243184,-41292.11440992,9.88e-05,2]
[345003289,1733920243239,-3399.999999,9.88e-05,2]
[345003290,1733920243301,-1361.41877294,9.88e-05,2]
[345003291,1733920243359,-2084.85891946,9.88e-05,2]
[345003292,1733920243420,-301.12252601,9.88e-05,2]
[345003293,1733920243431,-1715.8921031,9.88e-05,2]
[345003294,1733920243442,-522.8,9.88e-05,2]
[345003304,1733920246035,-22122.33628272,9.88e-05,2]
[345003305,1733920246151,-2877.2110337,9.88e-05,2]
[345003306,1733920246163,-44093.4104728,9.88e-05,2]
[345003307,1733920246172,-572.26396938,9.999e-05,2]
[345003308,1733920246182,-104656.54436747,0.0001,2]
[345003309,1733920246211,-2367.76972,0.0001,2]
[345003310,1733920246272,-797.38311613,0.0001,2]
[345003311,1733920246284,-16207.81576505,0.0001,2]
[345003312,1733920246331,-250.0,9.955e-05,2]
[345003313,1733920246341,-448.64887618,0.0001,2]
[345003316,1733920754666,722.98,8.219e-05,2]
[345003320,1733921293812,-250.0,9.839e-05,2]
[345003321,1733921293836,-1000.0,9.893e-05,2]
[345003322,1733921293860,-234.75,9.952e-05,2]
[345003323,1733921293882,-300.0,9.999e-05,2]
[345003324,1733921293904,-7927.25,0.0001,2]
[345003325,1733921300677,-10000.0,0.0001,2]
[345003326,1733921306883,-10000.0,0.0001,2]
[345003327,1733921311657,-10000.0,0.0001,2]
[345003328,1733921317148,-10000.0,0.0001,2]
[345003329,1733921331369,-250.0,9.898e-05,2]
[345003330,1733921331390,-6873.07026442,0.0001,2]
[345003331,1733921331411,-2876.92973558,0.0001,2]
[345003332,1733921337109,-10000.0,0.0001,2]
[345003333,1733921342623,-300.0,9.999e-05,2]
[345003334,1733921342647,-9700.0,0.0001,2]
[345003335,1733921348505,-329.83026442,0.0001,2]
[345003336,1733921348526,-3000.0,0.0001,2]
[345003337,1733921348547,-1116.44912422,0.0001,2]
[345003338,1733921421656,738.01983,0.0001,2]
[345003348,1733921432355,-413.20781185,0.00010154,2]
[345003349,1733921432364,-446.65,0.00010199,2]
[345003350,1733921432373,-498.37418471,0.000102,2]
[345003351,1733921432387,-101.62581529,0.000102,2]
[345003352,1733921432397,-377.73773201,0.0001031,2]
[345003353,1733921432408,-89.26226799,0.0001031,2]
[345003354,1733921432416,-600.0,0.000104,3]
[345003355,1733921432425,-231.01210318,0.00010475,2]
[345003356,1733921432436,-491.96789682,0.00010475,2]
[345003357,1733921432445,-413.20781185,0.00010519,2]
[345003358,1733921432453,-167.03,0.00010542,2]
[345003359,1733921432462,-331.549,0.0001055,2]
[345003360,1733921432471,-409.14137633,0.0001055,2]
[345003361,1733921432483,-579.1131891,0.0001055,2]
[345003362,1733921432498,-107.05543457,0.0001055,2]
[345003363,1733921432508,-600.0,0.000106,5]
[345003364,1733921432518,-379.8,0.000106,2]
[345003365,1733921432527,-0.39456543,0.000106,2]
[345003366,1733921432542,-155.31543457,0.000106,2]
[345003367,1733921432552,-300.0,0.00010661,2]
[345003368,1733921432561,-419.68456543,0.00010662,2]
[345003369,1733921432577,-778.61908531,0.00010662,2]
[345003370,1733921432589,-1790.69634926,0.00010662,2]
[345003371,1733921432599,-4000.0,0.000107,2]
[345003372,1733921432608,-150.0,0.00010806,2]
[345003373,1733921432617,-413.20781185,0.00010843,2]
[345003374,1733921432627,-1000.0,0.00010858,2]
[345003375,1733921432638,-871.48,0.00010858,2]
[345003376,1733921432647,-435.92,0.00010875,2]
[345003377,1733921432657,-1000.0,0.000109,2]
[345003378,1733921432666,-300.40582538,0.0001092,2]
[345003379,1733921432689,-166.59417462,0.0001092,2]
[345003380,1733921432699,-434.9404,0.00010932,2]
[345003382,1733921432708,-3237.79270211,0.00010934,2]
[345003384,1733921432717,-500.0,0.00010958,2]
[345003386,1733921432726,-500.0,0.00010958,2]
[345003388,1733921432735,-504.152166,0.00010958,2]
[345003390,1733921432744,-500.0,0.00010958,2]
[345003392,1733921432752,-500.0,0.00010958,2]
[345003394,1733921432761,-288.34950708,0.00010958,2]
[345003396,1733921432770,-328.60373333,0.00010958,2]
[345003398,1733921432779,-503.7119918,0.00010958,2]
[345003400,1733921432788,-500.0,0.00010958,2]
[345003402,1733921432797,-500.0,0.00010958,2]
[345003435,1733921433005,-604.48,0.00010958,2]
[345003437,1733921433015,-500.0,0.00010958,2]
[345003439,1733921433025,-500.0,0.00010958,2]
[345003441,1733921433034,-500.0,0.00010958,2]
[345003443,1733921433044,-500.0,0.00010958,2]
[345003445,1733921433053,-500.0,0.00010958,2]
[345003447,1733921433062,-500.0,0.00010958,2]
[345003449,1733921433072,-500.0,0.00010958,2]
[345003451,1733921433082,-500.0,0.00010958,2]
[345003453,1733921433091,-500.0,0.00010958,2]
[345003455,1733921433100,-500.0,0.00010958,2]
[345003457,1733921433109,-500.0,0.00010958,2]
[345003459,1733921433118,-500.0,0.00010958,2]
[345003461,1733921433127,-500.0,0.00010958,2]
[345003463,1733921433137,-500.0,0.00010958,2]
[345003465,1733921433147,-500.0,0.00010958,2]
[345003467,1733921433156,-500.0,0.00010958,2]
[345003469,1733921433166,-500.0,0.00010958,2]
[345003471,1733921433175,-500.0,0.00010958,2]
[345003473,1733921433185,-500.0,0.00010958,2]
[345003475,1733921433194,-500.0,0.00010958,2]
[345003477,1733921433205,-500.0,0.00010958,2]
[345003479,1733921433214,-500.0,0.00010958,2]
[345003481,1733921433223,-500.0,0.00010958,2]
[345003483,1733921433233,-500.0,0.00010958,2]
[345003485,1733921433243,-500.0,0.00010958,2]
[345003487,1733921433252,-500.0,0.00010958,2]
[345003489,1733921433261,-500.0,0.00010958,2]
[345003491,1733921433270,-500.0,0.00010958,2]
[345003493,1733921433281,-500.0,0.00010958,2]
[345003495,1733921433291,-500.0,0.00010958,2]
[345003496,1733921433300,-314.61177212,0.00010958,2]
[345003498,1733921433310,-500.0,0.00010958,2]
[345003500,1733921433319,-500.0,0.00010958,2]
[345003502,1733921433328,-500.0,0.00010958,2]
[345003504,1733921433338,-500.0,0.00010958,2]
[345003506,1733921433348,-500.0,0.00010958,2]
[345003508,1733921433358,-259.34897652,0.00010958,2]
[345003510,1733921433368,-500.0,0.00010958,2]
[345003512,1733921433378,-500.0,0.00010958,2]
[345003514,1733921433389,-500.0,0.00010958,2]
[345003516,1733921433399,-500.0,0.00010958,2]
[345003518,1733921433408,-500.0,0.00010958,2]
[345003520,1733921433418,-500.0,0.00010958,2]
[345003522,1733921433428,-500.0,0.00010958,2]
[345003524,1733921433437,-500.0,0.00010958,2]
[345003526,1733921433447,-500.0,0.00010958,2]
[345003528,1733921433456,-500.0,0.00010958,2]
[345003530,1733921433465,-500.0,0.00010958,2]
[345003532,1733921433475,-500.0,0.00010958,2]
[345003534,1733921433484,-500.0,0.00010958,2]
[345003536,1733921433494,-500.0,0.00010958,2]
[345003538,1733921433504,-500.0,0.00010958,2]
[345003540,1733921433514,-500.0,0.00010958,2]
[345003542,1733921433524,-500.0,0.00010958,2]
[345003543,1733921433534,-559.91650574,0.00010958,2]
[345003544,1733921433543,-500.0,0.00010958,2]
[345003545,1733921433553,-500.0,0.00010958,2]
[345003547,1733921433562,-500.0,0.00010958,2]
[345003549,1733921433572,-500.0,0.00010958,2]
[345003550,1733921433583,-500.0,0.00010958,2]
[345003552,1733921433592,-500.0,0.00010958,2]
[345003554,1733921433601,-500.0,0.00010958,2]
[345003556,1733921433611,-500.0,0.00010958,2]
[345003557,1733921433620,-500.0,0.00010958,2]
[345003558,1733921433630,-500.0,0.00010958,2]
[345003559,1733921433645,-500.0,0.00010958,2]
[345003560,1733921433655,-500.0,0.00010958,2]
[345003561,1733921433664,-500.0,0.00010958,2]
[345003562,1733921433674,-500.0,0.00010958,2]
[345003563,1733921433683,-500.0,0.00010958,2]
[345003564,1733921433693,-500.0,0.00010958,2]
[345003565,1733921433702,-500.0,0.00010958,2]
[345003566,1733921433711,-500.0,0.00010958,2]
[345003567,1733921433722,-500.0,0.00010958,2]
[345003568,1733921433731,-500.0,0.00010958,2]
[345003569,1733921433740,-500.0,0.00010958,2]
[345003570,1733921433750,-500.0,0.00010958,2]
[345003571,1733921433759,-500.0,0.00010958,2]
[345003572,1733921433769,-499.00597436,0.00010958,2]
[345003573,1733921433778,-500.0,0.00010958,2]
[345003574,1733921433787,-500.0,0.00010958,2]
[345003575,1733921433797,-500.0,0.00010958,2]
[345003576,1733921433807,-500.0,0.00010958,2]
[345003577,1733921433817,-500.0,0.00010958,2]
[345003578,1733921433826,-500.0,0.00010958,2]
[345003579,1733921433836,-500.0,0.00010958,2]
[345003580,1733921433845,-500.0,0.00010958,2]
[345003581,1733921433854,-500.0,0.00010958,2]
[345003582,1733921433864,-500.0,0.00010958,2]
[345003583,1733921433873,-646.97723944,0.00010958,2]
[345003584,1733921433884,-500.0,0.00010958,2]
[345003585,1733921433893,-500.0,0.00010958,2]
[345003586,1733921433902,-500.0,0.00010958,2]
[345003587,1733921433912,-500.0,0.00010958,2]
[345003588,1733921433921,-500.0,0.00010958,2]
[345003589,1733921433930,-500.0,0.00010958,2]
[345003590,1733921433939,-500.0,0.00010958,2]
[345003591,1733921433948,-500.0,0.00010958,2]
[345003592,1733921433957,-500.0,0.00010958,2]
[345003593,1733921433966,-500.0,0.00010958,2]
[345003594,1733921433975,-500.0,0.00010958,2]
[345003595,1733921433985,-500.0,0.00010958,2]
[345003596,1733921433995,-500.0,0.00010958,2]
[345003597,1733921434005,-258.74847791,0.00010958,2]
[345003598,1733921434015,-500.0,0.00010958,2]
[345003599,1733921434025,-500.0,0.00010958,2]
[345003600,1733921434034,-500.0,0.00010958,2]
[345003601,1733921434044,-511.5726508,0.00010958,2]
[345003602,1733921434055,-500.0,0.00010958,2]
[345003603,1733921434064,-500.73108348,0.00010958,2]
[345003604,1733921434074,-500.0,0.00010958,2]
[345003605,1733921434084,-500.0,0.00010958,2]
[345003606,1733921434094,-500.0,0.00010958,2]
[345003607,1733921434103,-500.0,0.00010958,2]
[345003608,1733921434113,-500.0,0.00010958,2]
[345003609,1733921434123,-500.0,0.00010958,2]
[345003610,1733921434134,-500.0,0.00010958,2]
[345003611,1733921434145,-256.56309171,0.00010958,2]
[345003612,1733921434154,-500.0,0.00010958,2]
[345003613,1733921434164,-500.0,0.00010958,2]
[345003614,1733921434174,-500.0,0.00010958,2]
[345003615,1733921434184,-500.0,0.00010958,2]
[345003616,1733921434194,-500.0,0.00010958,2]
[345003617,1733921434205,-500.0,0.00010958,2]
[345003618,1733921434215,-402.52544391,0.00010958,2]
[345003619,1733921434225,-500.0,0.00010958,2]
[345003620,1733921434234,-500.0,0.00010958,2]
[345003621,1733921434244,-500.0,0.00010958,2]
[345003622,1733921434255,-500.0,0.00010958,2]
[345003623,1733921434264,-500.0,0.00010958,2]
[345003624,1733921434274,-500.23777733,0.00010958,2]
[345003625,1733921434284,-500.0,0.00010958,2]
[345003626,1733921434295,-500.0,0.00010958,2]
[345003627,1733921434306,-500.0,0.00010958,2]
[345003628,1733921434316,-500.0,0.00010958,2]
[345003629,1733921434326,-500.0,0.00010958,2]
[345003630,1733921434335,-500.0,0.00010958,2]
[345003631,1733921434345,-500.0,0.00010958,2]
[345003632,1733921434355,-500.0,0.00010958,2]
[345003633,1733921434365,-500.0,0.00010958,2]
[345003634,1733921434376,-500.0,0.00010958,2]
[345003635,1733921434388,-500.0,0.00010958,2]
[345003636,1733921434399,-500.0,0.00010958,2]
[345003637,1733921434408,-500.0,0.00010958,2]
[345003638,1733921434418,-500.0,0.00010958,2]
[345003639,1733921434428,-500.0,0.00010958,2]
[345003640,1733921434438,-500.0,0.00010958,2]
[345003641,1733921434447,-527.79,0.00010958,2]
[345003642,1733921434456,-500.0,0.00010958,2]
[345003643,1733921434466,-500.0,0.00010958,2]
[345003644,1733921434475,-500.0,0.00010958,2]
[345003645,1733921434486,-506.68761556,0.00010958,2]
[345003646,1733921434495,-500.0,0.00010958,2]
[345003647,1733921434505,-500.0,0.00010958,2]
[345003648,1733921434514,-500.0,0.00010958,2]
[345003649,1733921434524,-500.0,0.00010958,2]
[345003650,1733921434534,-500.0,0.00010958,2]
[345003651,1733921434543,-500.0,0.00010958,2]
[345003652,1733921434553,-335.45099784,0.00010958,2]
[345003653,1733921434562,-500.0,0.00010958,2]
[345003654,1733921434572,-500.0,0.00010958,2]
[345003655,1733921434582,-500.0,0.00010958,2]
[345003656,1733921434591,-500.0,0.00010958,2]
[345003657,1733921434600,-500.0,0.00010958,2]
[345003658,1733921434610,-500.0,0.00010958,2]
[345003659,1733921434619,-500.0,0.00010958,2]
[345003660,1733921434629,-500.0,0.00010958,2]
[345003661,1733921434641,-500.0,0.00010958,2]
[345003662,1733921434650,-386.15432516,0.00010958,2]
[345003663,1733921434659,-500.0,0.00010958,2]
[345003664,1733921434669,-500.0,0.00010958,2]
[345003665,1733921434678,-500.0,0.00010958,2]
[345003666,1733921434688,-500.0,0.00010958,2]
[345003667,1733921434697,-500.0,0.00010958,2]
[345003668,1733921434706,-500.0,0.00010958,2]
[345003669,1733921434716,-314.86389997,0.00010958,2]
[345003670,1733921434725,-500.0,0.00010958,2]
[345003671,1733921434735,-500.0,0.00010958,2]
[345003672,1733921434745,-433.26780689,0.00010958,2]
[345003673,1733921434755,-200.3559791,0.00010958,2]
[345003674,1733921434765,-500.0,0.00010958,2]
[345003675,1733921434774,-500.0,0.00010958,2]
[345003676,1733921434783,-500.0,0.00010958,2]
[345003677,1733921434793,-500.0,0.00010958,2]
[345003678,1733921434802,-500.0,0.00010958,2]
[345003679,1733921434812,-506.4649256,0.00010958,2]
[345003680,1733921434821,-500.0,0.00010958,2]
[345003681,1733921434831,-500.0,0.00010958,2]
[345003682,1733921434840,-500.0,0.00010958,2]
[345003683,1733921434849,-500.0,0.00010958,2]
[345003684,1733921434859,-344.8319438,0.00010958,2]
[345003685,1733921434868,-500.0,0.00010958,2]
[345003686,1733921434877,-500.0,0.00010958,2]
[345003687,1733921434887,-500.0,0.00010958,2]
[345003688,1733921434897,-500.0,0.00010958,2]
[345003689,1733921434907,-500.0,0.00010958,2]
[345003690,1733921434917,-500.0,0.00010958,2]
[345003691,1733921434926,-500.0,0.00010958,2]
[345003692,1733921434935,-471.595757,0.00010958,2]
[345003693,1733921434944,-500.0,0.00010958,2]
[345003694,1733921434954,-638.84452947,0.00010958,2]
[345003695,1733921434963,-500.0,0.00010958,2]
[345003696,1733921434972,-500.0,0.00010958,2]
[345003697,1733921434981,-638.21,0.00010958,2]
[345003698,1733921434992,-500.0,0.00010958,2]
[345003699,1733921435001,-500.0,0.00010958,2]
[345003700,1733921435010,-500.0,0.00010958,2]
[345003701,1733921435019,-500.0,0.00010958,2]
[345003702,1733921435028,-455.74168209,0.00010958,2]
[345003703,1733921435038,-500.0,0.00010958,2]
[345003704,1733921435047,-500.0,0.00010958,2]
[345003705,1733921435057,-500.0,0.00010958,2]
[345003706,1733921435067,-501.11544202,0.00010958,2]
[345003707,1733921435077,-500.0,0.00010958,2]
[345003708,1733921435087,-500.0,0.00010958,2]
[345003709,1733921435096,-500.0,0.00010958,2]
[345003710,1733921435106,-500.0,0.00010958,2]
[345003711,1733921435119,-500.0,0.00010958,2]
[345003712,1733921435131,-500.0,0.00010958,2]
[345003713,1733921435145,-500.0,0.00010958,2]
[345003714,1733921435157,-500.0,0.00010958,2]
[345003715,1733921435169,-500.0,0.00010958,2]
[345003716,1733921435182,-500.0,0.00010958,2]
[345003717,1733921435193,-500.0,0.00010958,2]
[345003718,1733921435208,-500.0,0.00010958,2]
[345003719,1733921435218,-500.0,0.00010958,2]
[345003720,1733921435231,-500.0,0.00010958,2]
[345003721,1733921435243,-500.0,0.00010958,2]
[345003722,1733921435255,-500.0,0.00010958,2]
[345003723,1733921435267,-500.0,0.00010958,2]
[345003724,1733921435279,-500.0,0.00010958,2]
[345003725,1733921435291,-500.0,0.00010958,2]
[345003726,1733921435302,-500.0,0.00010958,2]
[345003727,1733921435314,-500.0,0.00010958,2]
[345003728,1733921435326,-500.0,0.00010958,2]
[345003729,1733921435337,-500.0,0.00010958,2]
[345003730,1733921435349,-500.0,0.00010958,2]
[345003731,1733921435360,-500.0,0.00010958,2]
[345003732,1733921435370,-500.0,0.00010958,2]
[345003733,1733921435381,-500.0,0.00010958,2]
[345003734,1733921435392,-500.0,0.00010958,2]
[345003735,1733921435404,-500.0,0.00010958,2]
[345003736,1733921435417,-500.0,0.00010958,2]
[345003737,1733921435429,-500.0,0.00010958,2]
[345003738,1733921435441,-500.0,0.00010958,2]
[345003739,1733921435452,-500.0,0.00010958,2]
[345003740,1733921435464,-500.0,0.00010958,2]
[345003741,1733921435476,-500.0,0.00010958,2]
[345003742,1733921435487,-500.0,0.00010958,2]
[345003743,1733921435499,-500.0,0.00010958,2]
[345003744,1733921435510,-500.0,0.00010958,2]
[345003745,1733921435522,-500.0,0.00010958,2]
[345003746,1733921435533,-500.0,0.00010958,2]
[345003747,1733921435546,-500.0,0.00010958,2]
[345003748,1733921435556,-500.0,0.00010958,2]
[345003749,1733921435568,-151.44135713,0.00010958,2]
[345003750,1733921435580,-500.0,0.00010958,2]
[345003751,1733921435590,-500.0,0.00010958,2]
[345003752,1733921435601,-500.0,0.00010958,2]
[345003753,1733921435613,-507.45287007,0.00010958,2]
[345003754,1733921435626,-500.0,0.00010958,2]
[345003755,1733921435638,-500.0,0.00010958,2]
[345003756,1733921435650,-407.35555687,0.00010958,2]
[345003757,1733921435662,-500.0,0.00010958,2]
[345003758,1733921435673,-455.15772944,0.00010958,2]
[345003759,1733921435684,-500.0,0.00010958,2]
[345003760,1733921435697,-500.0,0.00010958,2]
[345003761,1733921435708,-500.0,0.00010958,2]
[345003762,1733921435720,-500.0,0.00010958,2]
[345003763,1733921435732,-500.0,0.00010958,2]
[345003764,1733921435743,-500.0,0.00010958,2]
[345003765,1733921435754,-500.0,0.00010958,2]
[345003766,1733921435765,-500.0,0.00010958,2]
[345003767,1733921435776,-1031.19,0.00010958,2]
[345003768,1733921435786,-500.0,0.00010958,2]
[345003769,1733921435796,-230.68,0.00010958,2]
[345003770,1733921435819,-500.0,0.00010958,2]
[345003771,1733921435830,-500.0,0.00010958,2]
[345003772,1733921435842,-500.0,0.00010958,2]
[345003773,1733921435855,-500.0,0.00010958,2]
[345003774,1733921435868,-500.0,0.00010958,2]
[345003775,1733921435879,-500.0,0.00010958,2]
[345003776,1733921435892,-500.0,0.00010958,2]
[345003777,1733921435902,-500.0,0.00010958,2]
[345003778,1733921435913,-500.0,0.00010958,2]
[345003779,1733921435924,-603.75,0.00010958,2]
[345003780,1733921435935,-154.589909,0.00010958,2]
[345003781,1733921435946,-170.542089,0.00010958,2]
[345003782,1733921435958,-500.0,0.00010958,2]
[345003783,1733921435970,-500.0,0.00010958,2]
[345003784,1733921435982,-194.324822,0.00010958,2]
[345003785,1733921435993,-194.324822,0.00010958,2]
[345003786,1733921436003,-500.0,0.00010958,2]
[345003787,1733921436014,-500.0,0.00010958,2]
[345003788,1733921436024,-500.0,0.00010958,2]
[345003789,1733921436034,-500.0,0.00010958,2]
[345003790,1733921436044,-338.833365,0.00010958,2]
[345003791,1733921436054,-500.0,0.00010958,2]
[345003792,1733921436064,-500.0,0.00010958,2]
[345003793,1733921436074,-500.0,0.00010958,2]
[345003794,1733921436086,-500.0,0.00010958,2]
[345003795,1733921436097,-500.0,0.00010958,2]
[345003796,1733921436108,-500.0,0.00010958,2]
[345003797,1733921436119,-500.0,0.00010958,2]
[345003798,1733921436130,-511.38639186,0.00010958,2]
[345003799,1733921436143,-500.0,0.00010958,2]
[345003800,1733921436154,-500.0,0.00010958,2]
[345003801,1733921436165,-500.0,0.00010958,2]
[345003802,1733921436175,-500.0,0.00010958,2]
[345003803,1733921436185,-500.0,0.00010958,2]
[345003804,1733921436196,-500.0,0.00010958,2]